bitfinex/quotes_ETHUSD_20250131
["timestamp","ask_amount","ask_price","bid_price","bid_amount"]
[1738301087734,3.15956294,3239.0,3238.9,7.76788612]
[1738301087930,4.20609746,3239.0,3238.9,7.76788612]
[1738301088636,5.02199746,3239.0,3238.9,7.76788612]
[1738301089130,5.02199746,3239.0,3238.9,7.48115339]
[1738301089535,3.08765,3238.8,3238.2,7.48115339]
[1738301089835,6.1753,3238.8,3238.2,7.48115339]
[1738301090003,0.07221044,3238.7,3238.2,7.48115339]
[1738301090804,0.07221044,3238.7,3238.3,0.28688899]
[1738301091001,0.69696148,3238.7,3238.3,0.28688899]
[1738301091207,0.62475104,3238.7,3238.3,0.28688899]
[1738301091407,0.07221044,3238.6,3238.3,0.28688899]
[1738301091826,0.07221044,3238.5,3238.3,0.28688899]
[1738301092346,3.11863171,3238.7,3238.4,0.28688899]
[1738301092645,3.08773,3238.7,3238.4,0.28688899]
[1738301093145,0.07221044,3238.6,3238.4,0.28688899]
[1738301093438,0.07221044,3238.6,3238.5,0.28688899]
[1738301095355,4.27693666,3238.6,3238.5,0.28688899]
[1738301095556,4.20472622,3238.6,3238.5,0.28688899]
[1738301095771,4.27693666,3238.6,3238.5,0.28688899]
[1738301096611,4.27693666,3238.6,3238.2,7.48115339]
[1738301096967,3.95786044,3238.6,3238.2,7.48115339]
[1738301097111,3.95786044,3238.6,3238.5,0.2867808]
[1738301101318,0.87011044,3238.6,3238.5,0.2867808]
[1738301101827,0.07221044,3238.6,3238.5,0.2867808]
[1738301102648,0.07221044,3238.6,3238.5,1.1056808]
[1738301103058,3.08737,3239.0,3238.5,1.1056808]
[1738301103559,0.07214491,3238.9,3238.5,1.1056808]
[1738301103850,3.15960491,3238.9,3238.6,0.2867808]
[1738301105137,3.15960491,3238.9,3238.7,0.2867808]
[1738301105330,3.84790094,3238.9,3238.7,0.2867808]
[1738301106567,0.03090171,3238.8,3238.7,0.2867808]
[1738301106719,3.87716171,3238.8,3238.7,0.2867808]
[1738301107231,3.08781,3238.6,3238.2,7.48115339]
[1738301107426,3.11871171,3238.6,3238.1,7.48115339]
[1738301107745,3.08797,3238.4,3238.1,7.48115339]
[1738301107928,3.08804,3238.3,3238.1,7.48115339]
[1738301108132,3.91882373,3238.3,3238.1,7.48115339]
[1738301108356,3.91882373,3238.3,3237.8,3.83913]
[1738301108560,3.08814,3238.2,3237.8,0.7507]
[1738301108755,3.08814,3238.2,3237.7,7.48115339]
[1738301110060,3.08814,3238.2,3237.8,0.28686952]
[1738301110264,3.08831,3238.1,3237.8,0.28686952]
[1738301110442,3.16024082,3238.1,3237.8,0.28686952]
[1738301110755,0.03090171,3238.0,3237.8,0.28686952]
[1738301111323,0.03090171,3238.0,3237.9,0.28686952]
[1738301111528,3.08831,3238.1,3237.9,0.28686952]
[1738301111731,3.85810182,3238.1,3237.9,0.28686952]
[1738301111953,0.03090171,3238.0,3237.9,0.28686952]
[1738301113178,3.11922171,3238.0,3237.9,0.28686952]
[1738301113458,3.87422,3238.0,3237.9,0.28686952]
[1738301113958,3.90512171,3238.0,3237.9,0.28686952]
[1738301114161,4.74212988,3238.0,3237.9,0.28686952]
[1738301114363,4.74212988,3238.0,3237.8,0.28686952]
[1738301114529,3.08842,3237.9,3237.8,0.28686952]
[1738301115650,3.08842,3237.9,3237.3,3.37581952]
[1738301116935,3.08842,3237.9,3237.4,0.28686952]
[1738301117137,3.08858,3237.8,3237.4,0.28686952]
[1738301118256,3.08858,3237.8,3237.5,0.28686952]
[1738301118569,3.08864,3237.7,3237.5,0.28686952]
[1738301119265,3.08864,3237.7,3237.6,0.28686952]
[1738301120673,3.08842,3237.9,3237.6,0.28686952]
[1738301120869,3.08842,3237.9,3237.4,0.8114]
[1738301122279,3.08842,3237.9,3237.5,0.28686952]
[1738301122477,0.60702815,3238.2,3237.6,3.08861]
[1738301122641,3.9027,3238.3,3237.7,3.08852]
[1738301122642,3.0881,3238.3,3237.7,3.08852]
[1738301122841,3.0881,3238.3,3237.6,0.7538]
[1738301123064,3.08815,3238.2,3237.6,0.7538]
[1738301123272,3.15932033,3238.2,3237.6,3.84248]
[1738301123781,3.15932033,3238.2,3237.7,0.28686952]
[1738301125187,3.15932033,3238.2,3237.7,7.76802291]
[1738301125343,3.15932033,3238.2,3237.8,0.28686952]
[1738301126870,0.07117033,3238.2,3237.9,0.8248]
[1738301127207,0.60597636,3238.9,3238.3,3.08796]
[1738301127479,3.08748,3238.9,3238.3,10.56911339]
[1738301127847,3.08748,3238.9,3238.4,0.28686952]
[1738301128047,3.08738,3239.0,3238.5,0.8248]
[1738301128481,3.0848,3239.2,3238.7,3.08765]
[1738301130563,3.0848,3239.2,3238.8,0.28686952]
[1738301130759,3.0848,3239.2,3239.0,0.7887]
[1738301131070,3.0848,3239.2,3239.0,3.87599]
[1738301133584,3.0848,3239.2,3239.1,0.28614462]
[1738301134049,3.0848,3239.2,3239.1,7.76729801]
[1738301134762,3.0848,3239.2,3239.1,7.48115339]
[1738301135970,3.0848,3239.2,3239.1,8.61686773]
[1738301137596,3.0848,3239.2,3239.1,11.70413773]
[1738301138384,3.0848,3239.2,3239.1,12.25413773]
[1738301139566,3.0848,3239.2,3239.1,13.08003773]
[1738301142410,3.0848,3239.2,3239.1,13.28103773]
[1738301142694,3.0848,3239.2,3239.1,13.56636993]
[1738301144368,3.0848,3239.2,3239.1,13.36536993]
[1738301144588,3.0848,3239.2,3239.1,13.56636993]
[1738301150113,3.0848,3239.2,3239.1,13.36536993]
[1738301150307,3.0848,3239.2,3239.1,13.56636993]
[1738301151611,3.0848,3239.2,3239.1,48.56636993]
[1738301166681,3.0848,3239.2,3239.1,47.74796993]
[1738301166888,3.0848,3239.2,3239.1,12.74796993]
[1738301168086,3.0848,3239.2,3239.1,12.54696993]
[1738301168280,3.0848,3239.2,3239.1,12.53946993]
[1738301168521,3.0848,3239.2,3239.1,8.31648559]
[1738301168722,3.0848,3239.2,3239.1,7.76648559]
[1738301169100,3.15794499,3239.2,3239.1,7.76648559]
[1738301169447,3.0848,3239.2,3239.1,7.76648559]
[1738301170654,3.15788385,3239.2,3239.1,7.76648559]
[1738301170821,3.85939723,3239.2,3239.1,7.76648559]
[1738301171707,4.62729723,3239.2,3239.1,7.76648559]
[1738301172141,7.71447723,3239.2,3239.1,0.2853322]
[1738301173035,4.62729723,3239.2,3239.1,0.2853322]
[1738301175902,7.71447723,3239.2,3239.1,0.2853322]
[1738301177554,0.8271,3239.1,3238.7,0.2853322]
[1738301177864,0.07288299,3239.0,3238.7,0.2853322]
[1738301178968,0.07288299,3239.0,3238.8,0.2853322]
[1738301180170,0.07288299,3239.0,3238.9,0.2853322]
[1738301181166,0.07288299,3239.0,3238.7,0.2853322]
[1738301182077,0.07288299,3239.0,3238.8,3.0875]
[1738301182254,0.07288299,3239.0,3238.9,3.08746]
[1738301182450,3.0848,3239.2,3239.1,3.08727]
[1738301183164,3.15741663,3239.2,3239.1,3.08727]
[1738301183470,3.0848,3239.2,3239.1,3.08727]
[1738301184345,3.0848,3239.2,3239.1,4.1308022]
[1738301184669,3.15739481,3239.2,3239.1,4.1308022]
[1738301184965,3.0848,3239.2,3239.1,4.1308022]
[1738301186102,3.15753892,3239.2,3239.1,4.1308022]
[1738301186308,3.0848,3239.2,3239.1,4.1308022]
[1738301187604,3.0848,3239.2,3239.1,11.61195559]
[1738301187978,3.0848,3239.2,3239.1,10.85375559]
[1738301188178,3.15753892,3239.2,3239.1,10.85375559]
[1738301193730,3.0848,3239.2,3239.1,12.32757715]
[1738301194429,3.0848,3239.2,3239.1,12.87757715]
[1738301197134,3.0848,3239.2,3239.1,10.85375559]
[1738301197432,3.0848,3239.2,3239.1,7.76648559]
[1738301197837,3.15784457,3239.2,3239.1,7.76648559]
[1738301199536,3.15784457,3239.2,3239.1,0.2853322]
[1738301202031,7.02312457,3239.2,3239.1,0.2853322]
[1738301202239,7.7285272,3239.2,3239.1,0.2853322]
[1738301206369,7.7285272,3239.2,3238.7,7.76648559]
[1738301207083,3.93594457,3239.2,3238.8,3.08751]
[1738301207248,3.15784457,3239.2,3238.8,3.08751]
[1738301207446,3.15784457,3239.2,3238.8,3.3728422]
[1738301207876,3.15784457,3239.2,3238.9,3.08746]
[1738301208076,3.15784457,3239.2,3239.1,3.08727]
[1738301208282,3.0848,3239.2,3239.1,3.786713]
[1738301208476,3.0848,3239.2,3239.1,4.0720452]
[1738301208682,3.15757818,3239.2,3239.1,4.0720452]
[1738301208894,3.15757818,3239.2,3239.1,12.10319859]
[1738301209101,3.0848,3239.2,3239.1,12.90559859]
[1738301209592,3.0848,3239.2,3239.1,12.91309859]
[1738301209797,3.0848,3239.2,3239.1,15.91309859]
[1738301212158,3.0848,3239.2,3239.1,17.92059859]
[1738301212699,3.0848,3239.2,3239.1,18.22949859]
[1738301213266,3.0848,3239.2,3239.1,18.43049859]
[1738301213665,3.0848,3239.2,3239.1,18.12159859]
[1738301215923,3.0848,3239.2,3239.1,16.12159859]
[1738301216420,3.0848,3239.2,3239.1,15.92059859]
[1738301216633,3.0848,3239.2,3239.1,16.12159859]
[1738301217823,3.0848,3239.2,3239.1,16.11409859]
[1738301218791,3.0848,3239.2,3239.1,14.60475559]
[1738301218997,3.0848,3239.2,3239.1,14.40375559]
[1738301219327,3.0848,3239.2,3239.1,13.85375559]
[1738301219510,3.0848,3239.2,3239.1,10.76648559]
[1738301219708,3.0848,3239.2,3239.1,7.76648559]
[1738301219896,3.1580192,3239.2,3239.1,7.76648559]
[1738301223351,3.1580192,3239.2,3239.1,0.2853322]
[1738301229366,3.1580192,3239.2,3239.1,10.85375559]
[1738301229524,3.1580192,3239.2,3239.1,12.24786715]
[1738301229723,3.0848,3239.2,3239.1,12.24786715]
[1738301230059,3.15764373,3239.2,3239.1,12.24786715]
[1738301230462,3.15764373,3239.2,3239.1,10.85375559]
[1738301232546,3.15764373,3239.2,3239.1,7.76648559]
[1738301233150,3.15764373,3239.2,3239.1,10.85375559]
[1738301234274,3.0848,3239.2,3239.1,10.85375559]
[1738301236533,3.15764373,3239.2,3239.1,10.85375559]
[1738301236734,3.15764373,3239.2,3239.1,7.76648559]
[1738301236941,3.15764373,3239.2,3239.1,10.85375559]
[1738301237730,3.15764373,3239.2,3239.1,7.76648559]
[1738301241182,3.15764373,3239.2,3239.1,0.2853322]
[1738301242179,3.15764373,3239.2,3239.1,3.3726022]
[1738301245311,3.0848,3239.2,3239.1,3.3726022]
[1738301246002,3.0848,3239.2,3239.1,3.65967956]
[1738301247017,3.0848,3239.2,3239.1,11.14083295]
[1738301248017,3.0848,3239.2,3239.1,8.05356295]
[1738301248407,3.15758696,3239.2,3239.1,8.05356295]
[1738301252941,3.15758696,3239.2,3239.1,0.57240956]
[1738301253628,3.91828696,3239.2,3239.1,0.57240956]
[1738301258743,3.8455,3239.2,3239.1,0.57240956]
[1738301259847,3.91824329,3239.2,3239.1,0.57240956]
[1738301260054,3.8455,3239.2,3239.1,0.57240956]
[1738301262047,3.91824329,3239.2,3239.1,0.57240956]
[1738301266187,7.70594662,3239.2,3239.1,0.57240956]
[1738301266484,7.63320333,3239.2,3239.1,0.57240956]
[1738301266685,7.70594662,3239.2,3239.1,0.57240956]
[1738301266887,10.70594662,3239.2,3239.1,0.57240956]
[1738301267191,10.70594662,3239.2,3239.1,0.28707736]
[1738301268259,3.0,3239.1,3238.2,0.28707736]
[1738301268468,6.85806662,3239.2,3238.2,0.28707736]
[1738301268469,0.814,3238.3,3238.2,0.28707736]
[1738301269286,0.88648123,3238.3,3238.2,0.28707736]
[1738301269493,3.97452123,3238.3,3238.2,0.28707736]
[1738301269956,4.00542294,3238.3,3238.2,0.28707736]
[1738301270157,4.02282294,3238.3,3238.2,0.28707736]
[1738301270355,4.73390323,3238.3,3238.2,0.28707736]
[1738301270978,0.78356152,3238.3,3237.8,3.37550736]
[1738301271178,0.78356152,3238.3,3237.8,0.28707736]
[1738301271179,0.10338294,3238.3,3237.8,0.28707736]
[1738301271386,0.8314,3238.1,3237.8,0.28707736]
[1738301271552,3.91967,3238.1,3237.8,0.28707736]
[1738301271757,0.07127525,3238.0,3237.8,0.28707736]
[1738301272688,3.08842,3237.9,3237.8,0.28707736]
[1738301273104,3.15976082,3237.9,3237.8,0.28707736]
[1738301273261,3.15976082,3237.9,3237.7,2.444]
[1738301275060,3.15976082,3237.9,3237.3,3.88589]
[1738301275295,3.15976082,3237.9,3237.3,11.36704339]
[1738301275503,0.07134082,3237.9,3237.3,12.24051007]
[1738301275690,0.07134082,3237.9,3237.4,3.3747723]
[1738301275890,3.91967,3238.1,3237.4,3.3747723]
[1738301276092,0.07140639,3237.8,3237.5,38.08878]
[1738301276302,3.91967,3238.1,3237.5,38.08878]
[1738301277103,3.91967,3238.1,3237.6,0.2859623]
[1738301277798,0.07140639,3238.0,3237.6,0.2859623]
[1738301278096,3.91967,3238.1,3237.6,0.2859623]
[1738301278988,0.07140639,3238.0,3237.6,0.2859623]
[1738301279195,3.91967,3238.1,3237.6,0.2859623]
[1738301279936,3.08854,3237.8,3237.6,0.2859623]
[1738301280207,0.8205,3237.7,3237.6,0.2859623]
[1738301280432,0.8205,3237.7,3237.4,7.48115339]
[1738301281125,0.07136707,3237.6,3237.4,7.48115339]
[1738301281724,3.90911,3237.7,3237.4,7.48115339]
[1738301282249,3.0887,3237.6,3237.5,0.2859027]
[1738301282718,3.08852,3237.8,3237.5,0.2859027]
[1738301282939,3.08833,3238.0,3237.5,1.0715027]
[1738301283143,0.07136707,3237.7,3237.5,4.1602827]
[1738301283300,3.08833,3238.0,3237.5,2.23564631]
[1738301283632,3.08833,3238.0,3237.5,1.0715027]
[1738301283833,0.07127089,3237.9,3237.5,1.0715027]
[1738301284138,0.07127089,3237.9,3237.6,0.2859027]
[1738301285738,0.07127089,3237.9,3237.6,7.76705609]
[1738301286937,3.15971089,3237.9,3237.6,7.76705609]
[1738301287622,3.15971089,3237.9,3237.6,7.48115339]
[1738301289541,0.07127089,3237.9,3237.6,7.48115339]
[1738301290544,3.15972089,3237.9,3237.6,7.48115339]
[1738301290744,3.15972089,3237.9,3237.7,0.28629551]
[1738301292346,3.08851,3237.8,3237.7,0.28629551]
[1738301292731,3.15984207,3237.8,3237.7,0.28629551]
[1738301302402,0.07133207,3237.8,3237.7,1.05629551]
[1738301302905,3.08834,3238.0,3237.7,1.05629551]
[1738301303252,0.07134082,3237.9,3237.7,1.05629551]
[1738301303653,3.15976082,3237.9,3237.8,0.28629551]
[1738301307699,3.19066253,3237.9,3237.8,0.28629551]
[1738301308201,3.15976082,3237.9,3237.8,0.28629551]
[1738301308407,3.78765807,3237.9,3237.8,0.28629551]
[1738301308613,4.62995978,3237.9,3237.8,0.28629551]
[1738301309411,4.59905807,3237.9,3237.8,0.28629551]
[1738301310679,0.07134082,3237.9,3237.8,0.28629551]
[1738301310879,3.08831,3238.1,3237.8,0.28629551]
[1738301311399,3.08842,3237.9,3237.8,0.28629551]
[1738301311975,3.1597215,3237.9,3237.8,0.28629551]
[1738301312271,3.1597215,3237.9,3237.4,0.7755]
[1738301312994,3.08857,3237.8,3237.4,0.7755]
[1738301313712,0.0713015,3237.7,3237.2,8.23415339]
[1738301314014,3.1599415,3237.7,3237.5,0.28749501]
[1738301315813,3.1599415,3237.7,3237.6,0.28749501]
[1738301316725,0.0713015,3237.7,3237.6,0.28749501]
[1738301317191,6.17693,3237.9,3237.6,0.28749501]
[1738301317388,0.0713015,3237.7,3237.6,0.28749501]
[1738301317582,3.08842,3237.9,3237.6,1.07869501]
[1738301317784,0.0713015,3237.7,3237.6,1.07869501]
[1738301317984,3.08842,3237.9,3237.6,1.07869501]
[1738301318234,0.0713015,3237.7,3237.6,1.07869501]
[1738301318382,3.08842,3237.9,3237.6,1.07869501]
[1738301318577,0.0713015,3237.7,3237.6,1.07869501]
[1738301318781,0.0713015,3237.7,3237.6,0.28749501]
[1738301319030,3.08861,3237.7,3237.6,0.28749501]
[1738301319194,3.1599115,3237.7,3237.6,0.28749501]
[1738301320633,0.0713015,3237.7,3237.6,0.28749501]
[1738301320987,3.08826,3238.1,3237.6,3.37618501]
[1738301321207,3.08826,3238.1,3237.7,0.8141]
[1738301321522,3.08833,3238.0,3237.7,0.8141]
[1738301322096,3.08833,3238.0,3237.8,0.28749501]
[1738301323320,3.08811,3238.3,3237.9,0.28749501]
[1738301325241,3.08811,3238.3,3238.0,0.28749501]
[1738301325455,3.08815,3238.2,3238.0,0.28749501]
[1738301326143,3.08811,3238.3,3238.0,0.28749501]
[1738301326932,3.08811,3238.3,3238.1,0.28749501]
[1738301328516,3.08811,3238.3,3238.2,0.28749501]
[1738301333152,3.15955137,3238.3,3238.2,0.28749501]
[1738301334663,0.07144137,3238.3,3238.2,1.07789501]
[1738301335026,3.08779,3238.6,3238.2,1.07789501]
[1738301335215,0.0715113,3238.3,3238.2,1.07789501]
[1738301335421,3.08779,3238.6,3238.2,1.07789501]
[1738301336023,0.0715113,3238.5,3238.2,1.07789501]
[1738301336637,0.0715113,3238.5,3238.3,0.28749501]
[1738301337447,3.19032301,3238.5,3238.3,0.28749501]
[1738301338023,3.1594213,3238.5,3238.1,7.48115339]
[1738301339133,3.08804,3238.3,3238.1,7.48115339]
[1738301339350,3.15967627,3238.2,3238.1,7.48115339]
[1738301342042,3.15967627,3238.2,3237.7,8.24795339]
[1738301348171,3.15967627,3238.2,3237.7,0.7668]
[1738301348968,0.07154627,3238.2,3237.8,0.55]
[1738301349177,0.07154627,3238.2,3237.9,3.08834]
[1738301349466,3.08786,3238.5,3237.9,3.08834]
[1738301349973,0.07150254,3238.4,3237.9,3.08834]
[1738301351172,0.07150254,3238.4,3238.0,3.08826]
[1738301351370,0.07150254,3238.4,3237.9,3.08834]
[1738301351676,4.514948,3238.6,3238.1,3.08822]
[1738301351839,0.07155061,3238.3,3238.0,0.8296]
[1738301352039,4.514948,3238.6,3238.0,0.8296]
[1738301352551,4.514948,3238.6,3238.0,3.91788]
[1738301352751,0.07155061,3238.5,3238.0,3.91788]
[1738301354073,0.07155061,3238.5,3238.0,11.39903339]
[1738301354841,0.07155061,3238.5,3238.0,12.49005076]
[1738301356291,0.07155061,3238.5,3238.3,0.55]
[1738301356446,3.08738,3239.0,3238.4,3.08794]
[1738301356651,3.08738,3239.0,3238.4,10.59996959]
[1738301356960,3.08738,3239.0,3238.4,10.56909339]
[1738301356961,0.07167738,3238.9,3238.4,10.56909339]
[1738301357481,3.08757,3238.8,3238.4,7.48115339]
[1738301358047,0.07167738,3238.7,3238.4,7.48115339]
[1738301358354,4.51906141,3239.2,3238.6,3.08775]
[1738301358355,3.887,3239.2,3238.6,3.08775]
[1738301358558,3.0848,3239.2,3238.9,0.8127]
[1738301358782,3.0848,3239.2,3239.0,3.0873]
[1738301360592,3.0848,3239.2,3238.9,0.8127]
[1738301360890,3.0848,3239.2,3238.9,3.90014]
[1738301361085,3.0848,3239.2,3239.0,3.477334]
[1738301361865,3.0848,3239.2,3239.0,0.390014]
[1738301362880,3.0848,3239.2,3239.0,7.87116739]
[1738301363081,0.07230212,3239.1,3239.0,7.87116739]
[1738301363280,0.07230212,3239.1,3239.0,10.95853739]
[1738301364107,0.07230212,3239.1,3239.0,7.87116739]
[1738301368273,0.07230212,3239.1,3239.0,7.48115339]
[1738301368780,0.07230212,3239.1,3238.8,7.48115339]
[1738301369469,3.15967212,3239.1,3238.8,7.48115339]
[1738301371604,0.07230212,3239.1,3238.8,7.48115339]
[1738301374504,0.07230212,3239.1,3238.9,3.88723]
[1738301374808,0.07230212,3239.1,3238.9,11.36838339]
[1738301376217,0.07230212,3239.1,3238.9,12.81398373]
[1738301377313,0.07230212,3239.1,3239.0,3.08737]
[1738301378479,3.0848,3239.2,3239.0,3.08737]
[1738301378813,0.07259043,3239.1,3239.0,3.08737]
[1738301379473,3.0848,3239.2,3239.0,3.08737]
[1738301379678,3.0848,3239.2,3239.0,4.67750537]
[1738301379879,3.0848,3239.2,3239.1,3.08727]
[1738301380111,3.0848,3239.2,3239.1,10.56842339]
[1738301380813,3.15739043,3239.2,3239.1,10.56842339]
[1738301381310,3.0848,3239.2,3239.1,10.56842339]
[1738301381503,3.0848,3239.2,3239.1,12.17300227]
[1738301381703,3.15739043,3239.2,3239.1,12.17300227]
[1738301383313,3.15739043,3239.2,3239.1,9.08573227]
[1738301385325,3.15739043,3239.2,3239.1,7.48115339]
[1738301389103,3.0848,3239.2,3239.1,7.48115339]
[1738301389636,3.0848,3239.2,3239.0,7.48115339]
[1738301390336,6.99289,3239.2,3239.0,7.48115339]
[1738301390727,0.07263411,3239.1,3239.0,7.48115339]
[1738301393348,3.15990411,3239.1,3239.0,7.48115339]
[1738301393550,4.17517252,3239.1,3239.0,7.48115339]
[1738301395522,4.17517252,3239.1,3238.4,10.56907339]
[1738301395721,4.17517252,3239.1,3238.5,7.48115339]
[1738301398023,4.20607423,3239.1,3238.5,7.48115339]
[1738301398220,0.7677,3239.0,3238.5,7.48115339]
[1738301398612,0.07263411,3238.9,3238.5,7.48115339]
[1738301399879,3.85509,3239.0,3238.5,7.48115339]
[1738301400087,0.7677,3239.0,3238.5,7.48115339]
[1738301401468,3.08747,3238.9,3238.5,7.48115339]
[1738301402157,3.08774,3238.7,3238.5,7.48115339]
[1738301403136,0.7554,3238.6,3238.5,7.48115339]
[1738301404072,0.7564,3238.8,3238.5,7.48115339]
[1738301405254,0.828,3239.0,3238.5,7.48115339]
[1738301405668,1.43314175,3239.0,3238.5,7.48115339]
[1738301405840,0.828,3239.0,3238.6,0.8322]
[1738301408046,3.0848,3239.2,3238.6,0.86307687]
[1738301408243,3.0848,3239.2,3238.8,3.08754]
[1738301409079,3.0848,3239.2,3238.7,3.08759]
[1738301409578,3.0348,3239.2,3238.7,3.08759]
[1738301411188,3.06570171,3239.2,3238.6,1.66662303]
[1738301411360,6.12206,3239.2,3238.6,1.66662303]
[1738301411681,6.12206,3239.2,3238.6,0.83442303]
[1738301411858,6.12206,3239.2,3238.6,3.92214303]
[1738301412455,3.0874,3239.0,3238.4,8.23235339]
[1738301412684,3.94588171,3238.9,3238.4,8.23235339]
[1738301412887,3.94588171,3238.9,3238.4,7.48115339]
[1738301413180,0.03090171,3238.8,3238.4,7.48115339]
[1738301413479,3.08766,3238.7,3238.3,7.48115339]
[1738301413950,7.00251,3238.9,3238.3,7.48115339]
[1738301414351,3.08758,3238.8,3238.3,7.48115339]
[1738301415989,3.08775,3238.6,3238.0,10.56946339]
[1738301416173,0.03090171,3238.5,3238.0,10.56946339]
[1738301416762,0.8194,3238.4,3238.0,7.48115339]
[1738301416956,3.90735,3238.4,3238.1,7.48115339]
[1738301417571,0.07240262,3238.3,3238.1,7.48115339]
[1738301418855,3.19135433,3238.3,3238.1,7.48115339]
[1738301419053,0.07196138,3238.2,3238.1,7.48115339]
[1738301419282,3.08805,3238.3,3238.1,7.48115339]
[1738301419471,0.07185217,3238.2,3238.1,7.48115339]
[1738301419671,3.08805,3238.3,3238.1,7.48115339]
[1738301419864,0.07185217,3238.2,3238.1,7.48115339]
[1738301420064,0.8194,3238.4,3238.1,7.48115339]
[1738301420284,0.07185217,3238.2,3238.1,7.48115339]
[1738301420489,0.8194,3238.4,3238.1,7.48115339]
[1738301420690,0.07185217,3238.2,3238.1,7.48115339]
[1738301420868,0.8194,3238.4,3238.1,7.48115339]
[1738301421271,0.07176913,3238.3,3238.1,7.48115339]
[1738301422291,0.07176913,3238.3,3237.9,10.56948339]
[1738301422457,0.07176913,3238.3,3237.9,12.01543173]
[1738301424355,0.07176913,3238.3,3237.9,8.92710173]
[1738301426096,0.07176913,3238.3,3237.9,12.01550173]
[1738301427064,0.8194,3238.4,3237.9,12.01550173]
[1738301428499,1.42794499,3238.6,3237.9,12.01550173]
[1738301428708,0.8053,3238.9,3238.4,0.766]
[1738301428889,0.2075,3240.2,3238.4,0.766]
[1738301428890,3.8401,3239.2,3238.7,3.08764]
[1738301429094,6.92729,3239.2,3238.7,7.48115339]
[1738301431904,3.0348,3239.2,3238.8,0.8032]
[1738301432074,3.0348,3239.2,3238.8,1.94040034]
[1738301432267,6.12198,3239.2,3238.8,1.94040034]
[1738301432669,3.0348,3239.2,3238.8,9.42155373]
[1738301432869,3.0348,3239.2,3238.8,12.50911373]
[1738301433081,3.0348,3239.2,3238.9,1.25091137]
[1738301433687,3.0348,3239.2,3238.9,8.73206476]
[1738301434765,6.12201,3239.2,3238.9,7.48115339]
[1738301434971,0.7599,3239.1,3238.9,7.48115339]
[1738301435167,3.08737,3239.0,3238.9,7.48115339]
[1738301437214,3.08737,3239.0,3238.5,7.48115339]
[1738301437780,0.7599,3239.1,3238.5,10.56894339]
[1738301437980,6.12201,3239.2,3238.7,0.7687]
[1738301437981,3.0348,3239.2,3238.7,0.7687]
[1738301438585,3.0348,3239.2,3238.7,3.85627]
[1738301440504,0.07242449,3239.1,3238.7,3.85627]
[1738301443122,0.07242449,3239.1,3238.8,7.48115339]
[1738301443681,0.07242449,3239.1,3238.8,8.11216771]
[1738301444384,0.07242449,3239.1,3238.9,3.08746]
[1738301446607,0.07242449,3239.1,3238.8,11.19972771]
[1738301449087,0.07242449,3239.1,3238.9,7.48115339]
[1738301454904,0.07242449,3239.1,3239.0,7.48115339]
[1738301460958,0.07242449,3239.1,3238.9,7.48115339]
[1738301461331,3.0348,3239.2,3238.9,8.67799516]
[1738301462633,0.07258606,3239.1,3238.9,8.67799516]
[1738301463255,0.07258606,3239.1,3239.0,4.43257]
[1738301463444,0.07258606,3239.1,3239.0,11.94459479]
[1738301463631,3.0348,3239.2,3239.1,3.63727]
[1738301463832,3.0348,3239.2,3239.1,5.31205352]
[1738301464369,3.0348,3239.2,3239.1,12.79320691]
[1738301468293,3.0348,3239.2,3239.1,13.57770691]
[1738301472929,3.0348,3239.2,3239.1,13.57020691]
[1738301473761,3.0348,3239.2,3239.1,13.77020691]
[1738301477990,3.0348,3239.2,3239.1,8.03115339]
[1738301478242,3.0348,3239.2,3239.1,7.48115339]
[1738301478588,6.22585206,3239.2,3239.1,7.48115339]
[1738301479103,7.05515206,3239.2,3239.1,7.48115339]
[1738301479268,7.02425035,3239.2,3239.1,7.48115339]
[1738301479649,3.81019539,3239.2,3238.5,7.48115339]
[1738301479852,3.08785,3238.5,3238.3,2.444]
[1738301480088,0.88593412,3238.4,3238.3,2.444]
[1738301482866,0.07263412,3238.4,3238.3,6.08204]
[1738301483054,0.7705,3238.8,3238.4,3.63788]
[1738301483251,0.07194831,3238.7,3238.2,10.56928339]
[1738301483456,3.15968831,3238.7,3238.2,7.48115339]
[1738301484779,0.07194831,3238.7,3238.3,7.48115339]
[1738301484981,3.08776,3238.6,3238.3,7.48115339]
[1738301485175,0.8215,3238.4,3238.3,7.48115339]
[1738301485375,3.90944,3238.4,3238.3,7.48115339]
[1738301485802,3.98146258,3238.4,3238.3,7.48115339]
[1738301486279,0.89352258,3238.4,3238.3,7.48115339]
[1738301490625,0.89352258,3238.4,3238.0,10.56945339]
[1738301490814,0.07202258,3238.4,3238.0,8.84693973]
[1738301491014,0.07202258,3238.4,3238.1,3.08822]
[1738301491216,3.88413,3238.7,3238.1,3.08822]
[1738301491417,0.07202258,3238.3,3238.1,3.08822]
[1738301491619,3.88413,3238.7,3238.1,3.08822]
[1738301491793,0.07196578,3238.2,3238.1,3.63822]
[1738301492116,3.8841,3238.7,3238.2,0.55]
[1738301492524,0.07198325,3238.6,3238.2,0.55]
[1738301493520,3.08797,3238.4,3238.0,7.48115339]
[1738301493699,0.8141,3238.3,3238.0,7.48115339]
[1738301493899,0.88610509,3238.3,3238.0,7.48115339]
[1738301494690,3.11903171,3238.2,3238.0,7.48115339]
[1738301494930,3.08839,3238.0,3237.7,7.48115339]
[1738301495098,0.03090171,3237.9,3237.7,7.48115339]
[1738301495289,0.10284125,3237.9,3237.7,7.48115339]
[1738301496329,3.19127125,3237.9,3237.7,7.48115339]
[1738301497322,3.08859,3237.8,3237.4,7.48115339]
[1738301497490,3.08873,3237.6,3237.3,7.48115339]
[1738301498092,0.07158554,3237.5,3237.3,7.48115339]
[1738301500650,0.46735709,3237.5,3237.3,7.48115339]
[1738301500893,3.87219,3237.3,3237.2,2.445]
[1738301501369,0.85426104,3237.3,3237.2,2.445]
[1738301502170,0.85426104,3237.3,3236.9,7.48115339]
[1738301502554,3.94328104,3237.3,3236.9,7.48115339]
[1738301503266,3.08918,3237.1,3236.9,7.48115339]
[1738301503463,0.07081619,3237.0,3236.6,7.48115339]
[1738301504272,0.07081619,3237.0,3236.7,3.63949]
[1738301504471,0.7832,3237.3,3236.8,3.08946]
[1738301504678,0.07081619,3237.2,3236.9,3.08931]
[1738301504877,0.7832,3237.3,3236.9,3.08931]
[1738301505078,0.07074183,3237.2,3236.9,3.08931]
[1738301505275,0.7832,3237.3,3236.9,3.08931]
[1738301505884,0.07074183,3237.2,3236.7,3.63951]
[1738301506051,0.07074183,3237.2,3236.7,0.55]
[1738301506380,3.90317171,3237.3,3236.7,0.55]
[1738301506599,4.66437481,3237.3,3236.6,7.48115339]
[1738301506766,3.08927,3237.1,3236.6,7.48115339]